bitfinex/quotes_ETHUSD_20250507
["timestamp","ask_amount","ask_price","bid_price","bid_amount"]
[1746613661568,4.11950751,1838.6,1838.5,11.35321675]
[1746613661771,0.80590928,1838.6,1838.5,11.35321675]
[1746613663474,0.80590928,1838.6,1838.5,13.83128677]
[1746613663675,0.80598629,1838.6,1838.5,13.83128677]
[1746613663898,0.50376891,1838.6,1838.5,13.83128677]
[1746613664412,0.503676,1838.6,1838.5,13.83128677]
[1746613666114,3.40765263,1838.8,1838.6,5.43879118]
[1746613666280,3.40765263,1838.8,1838.7,5.43862511]
[1746613666614,3.0,1838.8,1838.6,5.43871153]
[1746613666817,5.28233388,1839.0,1838.7,5.43853289]
[1746613668125,10.7202631,1839.0,1838.6,7.36571762]
[1746613668423,16.15826005,1839.0,1838.6,7.36571762]
[1746613668616,10.7202631,1839.0,1838.6,7.36571762]
[1746613669423,3.0,1838.8,1838.6,7.36571762]
[1746613669998,3.0,1838.8,1838.7,5.43862511]
[1746613671609,2.68964872,1839.0,1838.7,5.43862511]
[1746613671815,2.68964872,1839.0,1838.7,5.43845704]
[1746613672500,8.12740854,1839.0,1838.6,7.36575057]
[1746613672682,8.12740854,1839.0,1838.7,5.43862138]
[1746613673705,2.68964872,1839.0,1838.7,10.87703763]
[1746613673902,2.68964872,1839.0,1838.8,5.43829255]
[1746613674090,5.68964872,1839.0,1838.7,6.71885345]
[1746613674803,5.68964872,1839.0,1838.7,5.43841625]
[1746613675127,5.68964872,1839.0,1838.8,5.43826263]
[1746613675328,5.68964872,1839.0,1838.7,5.43841625]
[1746613676428,11.12739184,1839.0,1838.7,5.43841625]
[1746613676928,3.40731484,1839.0,1838.7,5.43841253]
[1746613677132,3.40731484,1839.0,1838.7,6.22574166]
[1746613679035,3.40731484,1839.0,1838.6,5.43877297]
[1746613679036,3.08693388,1838.9,1838.6,5.43877297]
[1746613680232,3.0,1838.8,1838.6,5.43877297]
[1746613680611,2.28233388,1838.7,1838.4,12.02219616]
[1746613680812,2.28233388,1838.7,1838.4,11.25442381]
[1746613681347,2.28233388,1838.7,1838.4,5.43942381]
[1746613681639,2.28233388,1838.7,1838.4,11.25442381]
[1746613682367,7.72098725,1838.7,1838.4,11.25442381]
[1746613682569,2.28233388,1838.7,1838.4,11.25442381]
[1746613682967,2.28233388,1838.7,1838.4,11.25433501]
[1746613683159,2.28233388,1838.7,1838.4,16.69367584]
[1746613683362,2.28233388,1838.7,1838.5,5.43917373]
[1746613683555,3.0,1838.8,1838.6,5.43892091]
[1746613683870,5.4382095,1838.9,1838.5,23.4390551]
[1746613684237,6.77816394,1838.8,1838.5,23.4390551]
[1746613684569,9.06049782,1838.8,1838.5,18.0]
[1746613685968,9.06049782,1838.8,1838.4,16.69360422]
[1746613686269,9.06049782,1838.8,1838.4,11.25430024]
[1746613686574,9.06049782,1838.8,1838.4,16.69364074]
[1746613686773,3.0,1838.6,1838.4,5.815]
[1746613686982,10.72146064,1838.6,1838.2,30.85999082]
[1746613687135,0.7536,1838.4,1838.2,25.42]
[1746613687338,3.03593388,1838.4,1838.2,25.42]
[1746613687773,0.7536,1838.4,1838.2,30.86002895]
[1746613688080,16.93689763,1838.6,1838.2,30.8599191]
[1746613688377,3.0,1838.4,1838.2,25.42]
[1746613689580,3.0,1838.4,1838.2,30.86010444]
[1746613689756,3.0,1838.4,1838.3,18.0]
[1746613691083,8.43951261,1838.4,1838.3,18.0]
[1746613691282,3.0,1838.4,1838.3,18.0]
[1746613691778,12.8957271,1838.4,1838.3,18.0]
[1746613691955,13.4457271,1838.4,1838.3,18.0]
[1746613693883,3.0,1838.1,1837.9,5.44094714]
[1746613694290,3.0,1838.1,1837.8,11.25707416]
[1746613694980,3.0,1838.1,1837.8,16.69818357]
[1746613695168,3.0,1838.1,1837.8,18.3679571]
[1746613695369,3.0,1838.1,1837.9,5.44082919]
[1746613695568,3.0,1837.8,1836.1,5.85409707]
[1746613695805,2.83233388,1836.7,1836.1,5.85409707]
[1746613696100,3.0,1836.7,1836.2,0.05445854]
[1746613696261,8.99454728,1836.7,1836.2,11.56627344]
[1746613696455,3.55,1836.7,1836.3,5.44553553]
[1746613696688,0.55,1836.9,1836.5,5.44499088]
[1746613696898,5.99340744,1837.1,1836.7,11.51036896]
[1746613697068,3.55,1837.1,1836.7,11.51036896]
[1746613697491,3.0,1837.1,1836.7,11.51036896]
[1746613697694,3.0,1837.1,1836.8,5.44415788]
[1746613698710,3.0,1837.1,1836.7,11.51037133]
[1746613698910,3.0,1837.1,1836.7,13.30613621]
[1746613699071,3.41886035,1837.1,1836.7,13.30613621]
[1746613699417,11.14466232,1837.1,1836.7,11.51235447]
[1746613699772,0.41886035,1837.1,1836.8,5.44401315]
[1746613699978,3.0,1837.2,1836.8,6.25501315]
[1746613700178,3.0,1837.2,1836.8,0.811]
[1746613700386,5.44321585,1837.2,1836.8,0.811]
[1746613700710,3.0,1837.1,1836.9,5.44387799]
[1746613700895,0.7635,1837.4,1837.0,5.4433625]
[1746613701209,8.44287359,1837.3,1836.9,5.44381929]
[1746613701418,10.72520747,1837.3,1836.9,5.44381929]
[1746613701582,5.28233388,1837.3,1836.9,5.44383995]
[1746613701797,3.0,1837.2,1836.9,6.73692208]
[1746613702007,3.0,1837.3,1837.0,5.44351121]
[1746613702431,3.0,1837.3,1837.0,5.44350673]
[1746613702726,8.44209311,1837.6,1837.1,5.49761049]
[1746613702924,8.44190022,1837.6,1837.2,11.51086686]
[1746613703288,0.41509973,1837.6,1837.4,5.44236593]
[1746613703516,16.43399537,1837.7,1837.3,5.49702682]
[1746613703712,3.0,1837.6,1837.3,5.49702682]
[1746613704430,3.0,1837.6,1837.3,5.44260127]
[1746613704732,3.0,1837.6,1837.2,13.44997576]
[1746613704929,8.44190766,1837.6,1837.2,18.89285327]
[1746613705546,3.0,1837.6,1837.3,5.4427228]
[1746613705712,3.0,1837.6,1837.3,5.44274573]
[1746613705886,3.0,1837.6,1837.3,1.3994053]
[1746613706090,3.0,1837.6,1837.3,6.84202655]
[1746613706290,3.0,1837.6,1837.4,5.44235725]
[1746613707317,3.0,1837.6,1837.5,5.44217687]
[1746613707648,1.54431571,1837.9,1837.6,5.44163804]
[1746613707818,0.78331571,1837.9,1837.6,5.44163804]
[1746613708017,3.78331571,1837.9,1837.6,5.44163804]
[1746613708259,11.50679375,1837.9,1837.5,5.44205046]
[1746613708557,11.50679375,1837.9,1837.3,1.34498324]
[1746613708558,1.0,1837.8,1837.6,5.44187634]
[1746613709037,1.0,1837.8,1837.7,6.069]
[1746613709243,1.0,1837.8,1837.7,11.51058458]
[1746613709448,5.28233388,1838.0,1837.7,11.51058458]
[1746613709634,10.72306354,1838.0,1837.7,11.51058458]
[1746613709836,8.44072966,1838.0,1837.7,11.51058458]
[1746613710548,3.0,1838.0,1837.7,5.44158458]
[1746613710717,3.415872,1838.0,1837.7,5.43434395]
[1746613710917,8.85663491,1838.0,1837.6,11.51067852]
[1746613711114,8.85663491,1838.0,1837.6,16.95236309]
[1746613711319,3.415872,1838.0,1837.6,11.51067852]
[1746613711555,9.75168509,1838.0,1837.6,11.51067852]
[1746613711956,9.75168509,1838.0,1837.6,16.9523752]
[1746613712172,9.75168509,1838.0,1837.6,11.51067852]
[1746613712666,4.31088621,1838.0,1837.7,5.44157909]
[1746613712825,9.75166949,1838.0,1837.6,16.95236646]
[1746613713263,0.5025384,1837.9,1837.6,16.95236646]
[1746613713432,4.0050768,1837.9,1837.6,11.51066167]
[1746613713770,3.5025384,1837.9,1837.6,11.51066167]
[1746613713956,3.5025384,1837.9,1837.6,16.95232901]
[1746613714266,0.50299821,1837.8,1837.6,16.95232901]
[1746613714451,3.5025384,1837.9,1837.6,11.51066167]
[1746613714656,8.44023803,1838.2,1837.8,5.44128849]
[1746613714854,0.50314371,1838.1,1837.8,5.44128849]
[1746613715068,0.50314371,1838.0,1837.9,5.44098538]
[1746613715229,1.00633289,1838.0,1837.9,5.44098538]
[1746613715432,0.50318918,1838.0,1837.9,5.44098538]
[1746613719166,0.4148691,1838.2,1838.0,5.44056959]
[1746613719330,3.8243,1838.3,1838.0,5.44056959]
[1746613719540,0.50376839,1838.1,1838.0,5.44056959]
[1746613719772,1.00776478,1838.1,1838.0,5.44056959]
[1746613720275,1.00776478,1838.1,1837.9,5.44098538]
[1746613720781,0.50399639,1838.0,1837.9,5.44098538]
[1746613721974,1.00783707,1838.0,1837.9,5.44098538]
[1746613722570,0.50399639,1838.0,1837.9,5.44098538]
[1746613723236,0.50399639,1838.0,1837.9,5.44099243]
[1746613723736,3.0,1838.1,1837.9,5.44099243]
[1746613723973,3.0,1838.1,1838.0,5.4406964]
[1746613724275,3.50383733,1838.1,1838.0,5.4406964]
[1746613724653,5.00763633,1838.1,1837.9,10.88157207]
[1746613724974,4.503799,1838.1,1837.9,5.44077714]
[1746613725739,4.0,1838.1,1837.9,5.44077714]
[1746613726576,1.0,1838.1,1838.0,5.4406964]
[1746613726879,1.50378652,1838.1,1837.9,5.44077714]
[1746613727288,4.50378652,1838.1,1837.9,5.44077714]
[1746613727459,1.50378652,1838.1,1837.9,5.44077714]
[1746613727784,1.0,1838.1,1837.9,5.44077714]
[1746613727983,1.0,1838.1,1838.0,5.4406964]
[1746613728189,1.50377018,1838.1,1838.0,5.4406964]
[1746613728751,2.00755297,1838.1,1838.0,5.4406964]
[1746613729589,2.00755297,1838.1,1837.9,5.44077714]
[1746613729788,5.00755297,1838.1,1837.9,5.44077714]
[1746613729956,4.50378279,1838.1,1837.9,5.44077714]
[1746613730566,4.50378279,1838.1,1838.0,5.978]
[1746613730993,5.00798328,1838.1,1838.0,5.978]
[1746613731488,5.00798328,1838.1,1838.0,11.4186964]
[1746613732205,5.00798328,1838.1,1838.0,5.978]
[1746613733305,5.3107232,1838.1,1838.0,5.978]
[1746613736114,4.80652271,1838.1,1838.0,5.978]
[1746613736308,5.31142122,1838.1,1838.0,5.978]
[1746613740315,10.75182163,1838.1,1838.0,5.978]
[1746613740517,5.44151471,1837.8,1837.5,5.978]
[1746613740732,5.44151471,1837.8,1837.5,11.42005385]
[1746613741020,0.50378279,1837.7,1837.5,11.42005385]
[1746613741390,0.50489851,1837.6,1837.5,11.42005385]
[1746613742522,1.0086813,1837.6,1837.5,11.42005385]
[1746613743131,1.0086813,1837.6,1837.5,5.978]
[1746613743521,1.0086813,1837.6,1837.4,19.613]
[1746613743815,0.30300316,1837.5,1837.4,25.591]
[1746613744012,0.80790167,1837.5,1837.4,25.591]
[1746613744181,0.80790167,1837.5,1837.4,31.03347305]
[1746613744383,1.31168446,1837.5,1837.4,31.03347305]
[1746613744586,1.0086813,1837.5,1837.4,31.03347305]
[1746613745619,1.0086813,1837.5,1837.4,49.03347305]
[1746613747130,1.0086813,1837.5,1837.4,49.85107305]
[1746613747308,3.0,1837.8,1837.5,5.44192548]
[1746613747627,0.30270921,1837.7,1837.5,5.44192548]
[1746613747925,0.80722571,1837.7,1837.5,5.44192548]
[1746613748223,0.5045165,1837.6,1837.5,5.44192548]
[1746613748427,1.00903148,1837.6,1837.5,5.44192548]
[1746613749705,0.50451498,1837.6,1837.5,5.44192548]
[1746613752095,1.00901106,1837.6,1837.5,5.44192548]
[1746613754741,0.50451498,1837.6,1837.5,5.44192548]
[1746613755831,1.00903895,1837.6,1837.5,5.44192548]
[1746613757131,0.50451498,1837.6,1837.5,5.44192548]
[1746613757543,0.50451498,1837.6,1837.5,8.04011222]
[1746613757840,0.50455359,1837.9,1837.8,6.27148849]
[1746613758019,1.17786848,1838.2,1838.0,5.44060817]
[1746613758744,0.50465656,1838.1,1838.0,5.44060817]
[1746613758930,0.50465656,1838.1,1837.9,5.44095184]
[1746613759129,0.50465656,1838.1,1838.0,5.4406964]
[1746613759635,0.80744551,1838.1,1838.0,5.4406964]
[1746613760141,0.50465656,1838.1,1838.0,5.4406964]
[1746613761642,0.50465656,1838.1,1837.9,5.44080605]
[1746613761857,0.50465656,1838.1,1837.8,11.29018615]
[1746613762064,0.50465656,1838.0,1837.8,16.73132289]
[1746613762649,0.8125,1838.1,1837.9,5.44099243]
[1746613762817,0.50472725,1838.0,1837.9,5.44099243]
[1746613764654,0.80757912,1838.0,1837.9,11.28899243]
[1746613765154,0.80757912,1838.0,1837.9,5.848]
[1746613765857,0.80757912,1838.0,1837.9,23.848]
[1746613767165,4.19784212,1838.0,1837.9,18.0]
[1746613767763,4.19784212,1838.0,1837.8,5.848]
[1746613768253,0.50472725,1837.9,1837.8,5.848]
[1746613768655,0.80757912,1837.9,1837.8,5.848]
[1746613769859,0.80757912,1837.9,1837.8,11.28928849]
[1746613771157,1.31249827,1837.9,1837.8,11.28928849]
[1746613771960,1.31249827,1837.9,1837.8,5.848]
[1746613772164,1.31249827,1837.9,1837.8,11.28928849]
[1746613775078,1.31249827,1837.9,1837.8,5.848]
[1746613775563,4.31249827,1837.9,1837.7,5.848]
[1746613775870,0.7661,1837.8,1837.6,5.848]
[1746613776077,0.50491915,1837.7,1837.6,5.848]
[1746613776277,0.80777102,1837.7,1837.6,5.848]
[1746613776773,1.31249827,1837.7,1837.6,5.848]
[1746613777343,1.31249827,1837.7,1837.5,5.44199599]
[1746613777581,1.31249827,1837.7,1837.4,5.44223257]
[1746613777804,9.78862945,1837.7,1837.3,5.44259735]
[1746613778081,0.50472725,1837.6,1837.4,5.848]
[1746613778243,0.80757912,1837.6,1837.4,5.848]
[1746613778443,0.50472725,1837.5,1837.4,11.29044805]
[1746613779276,0.50472725,1837.5,1837.4,5.848]
[1746613779796,1.27282725,1837.5,1837.4,5.848]
[1746613780357,0.50472725,1837.5,1837.4,12.96380835]
[1746613780563,0.50472725,1837.5,1837.4,30.96380835]
[1746613781071,1.0096464,1837.5,1837.4,30.96380835]
[1746613781261,1.0096464,1837.5,1837.4,31.78300835]
[1746613782084,10.11637417,1837.5,1837.4,18.0]
[1746613782384,10.4192697,1837.5,1837.4,18.0]
[1746613784285,3.0,1837.4,1837.1,11.29215022]
[1746613785280,1.31254193,1837.3,1837.1,11.29215022]
[1746613785681,0.50472725,1837.2,1837.1,11.29215022]
[1746613785849,1.0096464,1837.2,1837.1,11.29215022]
[1746613786282,0.50491915,1837.2,1837.1,11.29215022]
[1746613786481,0.50491915,1837.2,1837.1,5.849]
[1746613786652,0.50491915,1837.2,1837.1,11.29236182]
[1746613787057,1.0086914,1837.2,1837.1,5.849]
[1746613787295,1.0086914,1837.2,1837.1,11.29236182]
[1746613787863,0.50491915,1837.2,1837.1,14.92744404]
[1746613788287,3.0,1837.4,1837.2,5.44298801]
[1746613789999,0.832,1837.5,1837.2,5.44298801]
[1746613790194,0.50363168,1837.4,1837.2,5.44298801]
[1746613790404,3.50363168,1837.4,1837.2,5.44298801]
[1746613790761,0.50363168,1837.3,1837.2,1.6735196]
[1746613791006,0.50363168,1837.3,1837.2,7.93268513]
[1746613791363,0.50363168,1837.5,1837.3,5.44267383]
[1746613791563,0.50363168,1837.5,1837.4,5.44247305]
[1746613792031,1.00739545,1837.5,1837.4,5.44247305]
[1746613793418,0.50376377,1837.5,1837.4,5.44247305]
[1746613794117,3.0,1837.6,1837.4,5.44247305]
[1746613794320,3.0,1837.6,1837.3,5.4427371]
[1746613794622,0.50397197,1837.5,1837.3,5.4427371]
[1746613795098,3.0,1837.6,1837.4,5.44247305]
[1746613795499,3.0,1837.6,1837.4,5.44230478]
[1746613796323,0.50412432,1837.5,1837.4,5.44230478]
[1746613796492,1.00835063,1837.5,1837.4,5.44230478]
[1746613796693,1.00835063,1837.5,1837.3,5.44257611]
[1746613796922,1.00835063,1837.5,1837.3,10.88515222]
[1746613797123,1.00835063,1837.5,1837.3,5.44257611]
[1746613797301,0.50422631,1837.5,1837.3,5.44257611]
[1746613797507,3.0,1837.6,1837.3,5.44257611]
[1746613798431,0.50436509,1837.5,1837.3,5.44257611]
[1746613798729,1.0,1837.5,1837.4,5.44247305]
[1746613799515,1.50448442,1837.5,1837.3,5.44259337]
[1746613800023,0.50448442,1837.5,1837.3,5.44259337]
[1746613800534,0.50448442,1837.4,1837.3,5.44259337]
[1746613800743,0.50448442,1837.5,1837.3,5.44259337]
[1746613800937,0.5045448,1837.4,1837.3,5.44259337]
[1746613801120,1.2825448,1837.4,1837.2,5.44289852]
[1746613801302,0.5045448,1837.4,1837.3,5.44276928]
[1746613801500,1.31179852,1837.4,1837.3,5.44276928]
[1746613802658,1.00902922,1837.4,1837.3,5.44276928]
[1746613803649,1.00902922,1837.4,1837.3,6.61340606]
[1746613804215,1.00902922,1837.4,1837.3,6.66782674]
[1746613806255,1.00902922,1837.4,1837.3,6.61340606]
[1746613808086,1.31229705,1837.4,1837.3,6.61340606]
[1746613809889,1.31229705,1837.4,1837.3,6.66782575]
[1746613810882,1.31229705,1837.4,1837.3,7.45392575]
[1746613811061,0.5045448,1837.4,1837.3,7.45392575]
[1746613811648,0.22073835,1837.4,1837.3,7.45392575]
[1746613812072,0.22073835,1837.4,1837.3,7.39950606]
[1746613812381,2.2825509,1837.6,1837.4,5.4423866]
[1746613812681,0.50533438,1837.5,1837.4,5.4423866]
[1746613812983,0.80845656,1837.5,1837.4,5.4423866]
[1746613813685,0.80845656,1837.5,1837.3,5.44258062]
[1746613814088,0.50533438,1837.4,1837.3,5.44258062]
[1746613815179,0.80843418,1837.4,1837.3,5.44258062]
[1746613815382,3.09098508,1837.4,1837.1,11.23322505]
[1746613815599,3.90218508,1837.4,1837.1,11.23316832]
[1746613815881,0.3030998,1837.3,1837.1,11.23316832]
[1746613816094,0.80843418,1837.3,1837.1,11.23316832]
[1746613816254,0.50533438,1837.2,1837.1,11.23316832]
[1746613817086,2.78788528,1837.2,1836.9,5.44385339]
[1746613817302,0.7741,1837.1,1837.0,5.79]
[1746613817456,1.27943438,1837.1,1837.0,5.79]
[1746613817658,1.58243086,1837.1,1837.0,5.79]
[1746613817987,1.58243086,1837.1,1836.8,5.44406833]
[1746613818308,0.50533438,1837.0,1836.8,5.44406833]
[1746613818592,0.50533438,1837.0,1836.9,18.0]
[1746613818793,0.50533438,1837.0,1836.9,23.44395448]
[1746613819163,0.50533438,1837.0,1836.9,26.41540676]
[1746613819596,0.50533438,1837.0,1836.9,23.44395448]
[1746613819901,0.80808664,1837.0,1836.9,23.44395448]
[1746613822724,0.80808664,1837.0,1836.9,18.0]
[1746613823015,0.80808664,1837.0,1836.8,5.44414295]
[1746613823215,0.80808664,1837.0,1836.9,5.44395448]
[1746613824230,0.80808664,1837.0,1836.9,6.53820788]
[1746613824584,0.50533438,1837.0,1836.9,6.53820788]
[1746613824784,0.50391135,1837.0,1836.9,6.53820788]
[1746613825211,0.50391135,1837.0,1836.9,5.44395448]
[1746613825398,1.00767476,1837.0,1836.9,5.44395448]
[1746613825721,1.00767476,1837.0,1836.9,5.5967197]
[1746613826022,1.78397476,1837.0,1836.9,0.15276522]
[1746613826392,1.78397476,1837.0,1836.8,5.44414666]
[1746613826393,2.08610324,1837.0,1836.8,5.44414666]
[1746613826600,2.08610324,1837.0,1836.9,0.12391192]
[1746613826790,1.58233983,1837.0,1836.9,0.12391192]
[1746613826990,1.58233983,1837.0,1836.8,5.21805858]
[1746613827211,0.50391135,1836.9,1836.8,5.21805858]
[1746613828410,0.50391135,1836.9,1836.7,25.384]
[1746613828731,0.50391135,1836.9,1836.6,5.8611052]
[1746613828732,0.7647,1836.8,1836.6,5.8611052]
[1746613828895,0.7647,1836.8,1836.6,5.86108496]
[1746613829088,0.7647,1836.8,1836.7,5.44454728]
[1746613829391,0.7647,1837.0,1836.8,5.44407614]
[1746613829916,3.41530411,1837.1,1836.8,5.44407614]
[1746613830126,3.41530411,1837.1,1836.9,5.44372441]
[1746613830616,1.00639009,1837.0,1836.9,5.44372441]
[1746613831524,1.00639009,1837.0,1836.8,5.44406228]
[1746613831728,0.50320934,1837.0,1836.8,5.44406228]
[1746613832327,0.50320934,1837.0,1836.8,10.88809701]
[1746613832530,3.41530411,1837.1,1836.8,5.44403473]
[1746613832701,4.37890079,1837.1,1836.8,5.44403473]
[1746613833541,0.50323972,1837.0,1836.8,5.44403473]
[1746613834236,4.37890079,1837.1,1836.8,5.44403473]
[1746613835036,9.82237195,1837.1,1836.7,10.88877348]
[1746613835234,0.50324474,1837.0,1836.7,5.44435948]
[1746613835398,0.50324171,1837.0,1836.7,10.88873774]
[1746613835594,0.7595,1836.9,1836.8,5.44425087]
[1746613835920,1.32674171,1837.0,1836.8,5.44425087]
[1746613836441,0.50324171,1836.9,1836.8,5.44425087]
[1746613837137,0.8235,1837.0,1836.8,10.88835189]
[1746613837298,0.8235,1837.0,1836.8,5.44404105]
[1746613837700,0.8235,1837.0,1836.8,10.88812178]
[1746613837937,0.8235,1837.0,1836.8,5.44404105]
[1746613838536,0.8235,1837.0,1836.9,5.44395448]
[1746613839139,1.32689593,1837.0,1836.9,5.44395448]
[1746613839328,1.8303039,1837.0,1836.8,5.44404105]
[1746613839645,1.0068039,1837.0,1836.9,5.44395448]
[1746613844744,1.0068039,1837.0,1836.9,6.27425448]
[1746613844900,1.0068039,1837.0,1836.9,12.04325448]
[1746613846145,0.55,1836.9,1835.3,0.28432169]
[1746613846349,0.55,1836.0,1835.4,0.15366532]
[1746613846546,0.55,1836.0,1835.5,5.44799576]
[1746613846547,3.55,1836.0,1835.5,5.44799576]
[1746613846748,0.80632956,1835.9,1835.6,5.44765188]
[1746613846949,0.80632956,1835.9,1835.7,0.8073]
[1746613847163,0.80632956,1835.9,1835.8,5.57052067]
[1746613847369,0.50340797,1835.9,1835.8,12.52203538]
[1746613847721,3.4164,1836.4,1835.9,5.44666896]
[1746613847954,8.86195925,1836.4,1836.0,0.12522865]
[1746613848148,0.4164,1836.4,1836.0,0.12522865]
[1746613848339,0.80513337,1836.3,1835.9,5.50120379]
[1746613848662,0.80513337,1836.3,1836.0,0.12522865]
[1746613849060,0.80513337,1836.2,1836.0,0.12522865]
[1746613849276,6.25129507,1836.2,1836.0,0.12522865]
[1746613849434,0.5032072,1836.1,1836.0,0.12522865]
[1746613849634,6.57466316,1836.1,1836.0,0.12522865]
[1746613849940,6.87663983,1836.1,1835.7,5.907]
[1746613850144,5.44675552,1836.0,1835.8,0.12670625]
[1746613850467,5.94996272,1836.0,1835.8,0.12670625]
[1746613850876,0.5032072,1835.9,1835.8,0.12670625]
[1746613851068,5.95012696,1835.9,1835.8,0.12670625]
[1746613851270,0.80513337,1835.9,1835.8,18.12670625]
[1746613851432,6.25205313,1835.9,1835.8,18.12670625]
[1746613852203,25.96251394,1835.9,1834.3,9.15576575]
[1746613852400,25.96251394,1835.9,1833.7,12.40866308]
[1746613852401,2.2825509,1835.0,1834.8,0.4164382]
[1746613852773,0.4164,1835.1,1834.8,5.86649737]
[1746613853007,11.28158851,1835.2,1834.8,6.99817487]
[1746613853296,0.50095895,1835.1,1834.8,6.99817487]
[1746613853700,0.50095895,1835.1,1834.8,6.99802796]
[1746613854009,0.50095895,1835.1,1834.8,6.99818533]
[1746613854298,8.44919296,1835.2,1834.8,0.4164382]
[1746613854466,8.44919296,1835.2,1834.8,6.3254382]
[1746613854665,3.0,1835.2,1834.8,6.3254382]
[1746613854978,3.0,1835.2,1834.8,6.2754382]
[1746613855287,3.0,1835.2,1834.8,6.2254382]
[1746613855493,3.0,1835.2,1834.8,11.67558081]
[1746613855678,3.0,1835.2,1834.9,5.44974949]
[1746613855997,3.83356905,1835.3,1834.9,5.44974949]
[1746613856200,3.83356905,1835.3,1834.8,11.67558081]
[1746613856201,3.55,1835.2,1834.8,11.67545421]
[1746613856399,0.83356905,1835.3,1834.9,5.44978211]
[1746613856604,0.83356905,1835.3,1835.0,5.4494621]
[1746613856907,0.83356905,1835.3,1835.0,5.44948974]
[1746613857063,0.83356905,1835.3,1834.9,5.44977376]
[1746613857264,0.55,1835.2,1835.0,18.0]
[1746613858104,3.0,1835.1,1835.0,18.0]
[1746613859169,3.0,1835.1,1834.9,5.44976646]
[1746613859504,0.83356905,1835.3,1835.0,5.44959128]
[1746613860267,0.83356905,1835.3,1834.9,5.44974583]
[1746613860467,7.26559136,1835.3,1834.8,11.67537731]
[1746613860668,1.81677709,1835.3,1835.0,5.44940515]
[1746613861069,0.4164,1835.3,1834.9,5.44981703]
[1746613861303,0.4164,1835.3,1835.1,5.44916032]
[1746613861887,0.4164,1835.3,1835.1,5.44926896]
[1746613862209,0.4164,1835.6,1835.4,5.44813388]
[1746613862785,3.0,1835.7,1835.4,10.89631434]
[1746613862986,3.0,1835.7,1835.5,5.44794947]
[1746613863184,10.6164,1835.8,1835.5,10.89585319]
[1746613863415,10.6164,1835.8,1835.5,5.44790372]
[1746613863584,16.27158058,1836.1,1835.6,5.44758365]
[1746613863784,2.04355806,1836.0,1835.7,5.44751295]
[1746613863986,10.82512951,1836.1,1835.8,5.44708835]
[1746613864188,10.2,1836.1,1835.9,5.44675465]
[1746613864591,10.2,1836.1,1835.9,10.89351461]
[1746613864796,10.2,1836.1,1835.9,5.44675465]
[1746613865720,10.2,1836.1,1835.9,5.24675465]
[1746613866215,11.56164,1836.1,1835.8,5.44702718]
[1746613867099,11.56164,1836.1,1835.7,5.44737772]
[1746613867100,17.00798689,1836.1,1835.7,5.44739347]
[1746613867603,0.49895738,1836.0,1835.7,5.44739347]
[1746613867801,5.94558127,1836.0,1835.6,11.35862991]
[1746613868119,5.44662389,1836.0,1835.6,11.35862991]
[1746613868420,9.49594037,1835.9,1835.5,11.35906985]
[1746613868714,9.49594037,1835.9,1835.6,5.44763189]
[1746613868715,4.0489687,1835.9,1835.6,5.44763189]
[1746613868879,3.0,1835.9,1835.6,5.44763189]
[1746613869315,3.0,1836.0,1835.8,5.4471283]
[1746613869614,3.0,1836.0,1835.9,5.44691976]
[1746613869850,3.0,1836.0,1835.7,11.70094108]
[1746613870055,3.0,1836.0,1835.7,6.12836972]
[1746613870344,3.0,1836.0,1835.5,6.7348]
[1746613870345,0.4164,1835.8,1835.5,11.35893101]
[1746613870509,0.4164,1835.8,1835.6,5.44779915]
[1746613871258,0.55,1835.9,1835.6,10.8954364]
[1746613871417,0.55,1835.9,1835.6,10.89527113]
[1746613871618,0.55,1835.9,1835.6,5.44763388]
[1746613871959,0.49976826,1835.8,1835.2,0.8238]
[1746613872122,0.49976826,1835.8,1835.1,5.44912182]
[1746613872123,5.99793755,1835.6,1835.1,5.44912182]
[1746613872316,4.65514481,1835.7,1834.9,0.7756]
[1746613872519,3.29999333,1835.5,1835.1,5.44915962]
[1746613873021,0.49976826,1835.4,1835.1,5.44915962]
[1746613873221,0.49280563,1835.4,1835.1,5.44915962]
[1746613873439,0.49280563,1835.4,1835.1,5.44909807]
[1746613873644,3.0,1835.5,1835.2,23.4489806]
[1746613874755,0.55,1835.6,1835.2,18.0]
[1746613874942,3.0,1835.5,1835.2,23.44889091]
[1746613875258,0.30075879,1835.4,1835.2,23.44882797]
[1746613875425,0.30075879,1835.4,1835.3,5.44870048]
[1746613875822,0.80254793,1835.4,1835.3,5.44870048]
[1746613876324,0.80254793,1835.4,1835.2,23.4488079]
[1746613876959,0.50178914,1835.4,1835.2,23.4488079]
[1746613877263,8.44792579,1835.6,1835.2,23.4488079]
[1746613877565,9.87912893,1835.6,1835.2,23.4488079]
[1746613877870,0.30117201,1835.5,1835.2,5.4488079]
[1746613878162,0.30117201,1835.5,1835.3,5.44857019]
[1746613878475,0.30117201,1835.4,1835.3,5.44846359]
[1746613878965,0.30117201,1835.4,1835.3,6.20786359]
[1746613879136,0.30117201,1835.4,1835.3,7.37353594]
[1746613879327,0.30117201,1835.9,1835.7,5.44750802]
[1746613880263,0.80357477,1835.8,1835.7,5.44733584]
[1746613881122,0.80357477,1835.8,1835.5,5.982]
[1746613881327,0.80357477,1835.8,1835.5,11.42999652]
[1746613881861,0.80357477,1835.7,1835.5,11.42999652]
[1746613882250,0.80357477,1835.7,1835.6,5.44780998]
[1746613882653,0.80394448,1835.7,1835.6,5.44780998]
[1746613883861,5.86440531,1835.6,1835.1,11.43004824]
[1746613884062,0.80394448,1835.5,1835.3,5.44844409]
[1746613884396,0.80394448,1835.5,1835.3,5.44847684]
[1746613884600,5.9984108,1835.4,1835.1,11.43029094]
[1746613884778,0.30154172,1835.3,1835.1,11.4300965]
[1746613884988,0.30154172,1835.3,1835.1,5.981]
[1746613885185,0.30154172,1835.3,1835.1,11.43006399]
[1746613885900,0.55,1835.4,1835.2,16.69330772]
[1746613886300,5.99840676,1835.4,1835.2,16.69330772]
[1746613886464,9.41510048,1835.3,1835.2,16.69330772]
[1746613886894,9.41510048,1835.3,1835.2,17.99999772]
[1746613887074,3.9664,1835.3,1835.2,17.99999772]
[1746613887399,3.0,1835.2,1834.9,5.44974379]
[1746613887776,3.0,1835.2,1834.8,11.74849672]
[1746613887777,0.55,1835.1,1834.8,11.74849672]
[1746613888403,0.55,1835.1,1834.9,5.44983146]
[1746613888604,3.0,1835.2,1835.0,5.44954119]
[1746613888768,3.0,1835.2,1834.9,5.44973625]
[1746613889098,3.0,1835.2,1834.9,10.89946251]
[1746613889271,3.0,1835.2,1834.9,5.44972626]
[1746613889472,3.0,1835.2,1834.9,5.44970409]